[Event "SVK-ch Open 2018"]
[Site "Banska Stiavnica"]
[Date "2018.07.13"]
[Round "7"]
[White "Bakalar, Jan"]
[Black "Ucekajova, Veronika"]
[Result "1-0"]
[ECO "A00"]
[WhiteElo "1998"]
[BlackElo "1757"]
[Annotator "NA"]
[PlyCount "53"]
[EventDate "2018.07.07"]
[EventType "swiss"]
[EventCountry "SVK"]
[SourceTitle "playchess.com"]
[Source "ChessBase"]
[SourceQuality "1"]
[TimeControl "40/5400+30:1800+30"]

1. g3 {[%emt 0:00:00]} g6 {[%emt 0:00:10]} 2. e4 {[%emt 0:00:19]} b6 {[%emt 0:01:21]} 3. Bg2 {[%emt 0:00:39]} Bb7 {[%emt 0:00:10]} 4. Nc3 {[%emt 0:01:19]} Bg7 {[%emt 0:01:03]} 5. Nge2 {[%emt 0:01:43]} d6 {[%emt 0:02:07]} 6. O-O {[%emt 0:00:50]} c5 {[%emt 0:01:13]} 7. d4 {[%emt 0:03:55]} cxd4 {[%emt 0:00:14]} 8. Nxd4 {[%emt 0:00:02]} Nf6 {[%emt 0:00:41]} 9. Re1 {[%emt 0:01:31]} Nbd7 {[%emt 0:00:33]} 10. e5 {[%emt 0:09:13]} dxe5 {[%emt 0:21:33]} 11. Bxb7 {[%emt 0:03:41]} exd4 {[%emt 0:00:31]} 12. Bxa8 {[%emt 0:00:37]} Qxa8 {[%emt 0:00:09]} 13. Nb5 {[%emt 0:02:28]} O-O {[%emt 0:03:59]} 14. Rxe7 {[%emt 0:05:51]} d3 {[%emt 0:03:24]} 15. cxd3 {[%emt 0:06:39]} Qd5 {[%emt 0:06:24]} 16. Nc3 {[%emt 0:01:00]} Qd6 {[%emt 0:00:32]} 17. Qe2 {[%emt 0:00:45]} Nc5 {[%emt 0:01:13]} 18. Bf4 {[%emt 0:07:29]} Qd4 {[%emt 0:05:43]} 19. Be3 {[%emt 0:07:41]} Qd6 {[%emt 0:00:38]} 20. Bxc5 {[%emt 0:00:13]} Qxc5 {[%emt 0:00:17]} 21. Rd1 {[%emt 0:00:55]} b5 {[%emt 0:00:50]} 22. d4 {[%emt 0:01:18]} Qb4 {[%emt 0:03:12]} 23. a3 {[%emt 0:01:54]} Qb3 {[%emt 0:00:59]} 24. Qxb5 {[%emt 0:01:28]} Rb8 {[%emt 0:01:16]} 25. Qxb3 {[%emt 0:00:52]} Rxb3 {[%emt 0:00:09]} 26. Rd2 {[%emt 0:01:56]} a5 {[%emt 0:00:31]} 27. Ra7 {[%emt 0:00:44]} 1-0

[Event "SVK-ch Open 2018"]
[Site "Banska Stiavnica"]
[Date "2018.07.13"]
[Round "7"]
[White "Gajdosik, Andrej"]
[Black "Horvath, Julia"]
[Result "1/2-1/2"]
[ECO "D91"]
[WhiteElo "1992"]
[BlackElo "2107"]
[Annotator "NA"]
[PlyCount "37"]
[EventDate "2018.07.07"]
[EventType "swiss"]
[EventCountry "SVK"]
[SourceTitle "playchess.com"]
[Source "ChessBase"]
[SourceQuality "1"]
[TimeControl "40/5400+30:1800+30"]

1. d4 {[%emt 0:00:00]} Nf6 {[%emt 0:00:00]} 2. c4 {[%emt 0:00:00]} g6 {[%emt 0:00:00]} 3. Nc3 {[%emt 0:00:00]} d5 {[%emt 0:00:00]} 4. Nf3 {[%emt 0:01:18]} Bg7 {[%emt 0:00:00]} 5. Bg5 {[%emt 0:02:34]} dxc4 {[%emt 0:05:32]} 6. e3 {[%emt 0:01:19]} O-O {[%emt 0:00:46]} 7. Bxc4 {[%emt 0:00:17]} c5 {[%emt 0:05:23]} 8. O-O {[%emt 0:01:37]} cxd4 {[%emt 0:09:24]} 9. Qxd4 {[%emt 0:05:22]} Nc6 {[%emt 0:05:28]} 10. Qh4 {[%emt 0:01:34]} Qb6 {[%emt 0:12:15]} 11. Rab1 {[%emt 0:04:22]} Qc5 {[%emt 0:07:34]} 12. Be2 {[%emt 0:05:11]} Qb4 {[%emt 0:07:11]} 13. Qxb4 {[%emt 0:07:58]} Nxb4 {[%emt 0:00:04]} 14. Rbd1 {[%emt 0:00:10]} Nc6 {[%emt 0:05:39]} 15. Rd2 {[%emt 0:01:39]} Be6 {[%emt 0:01:22]} 16. Rfd1 {[%emt 0:00:45]} Rac8 {[%emt 0:00:56]} 17. h3 {[%emt 0:02:21]} a6 {[%emt 0:02:04]} 18. Bh4 {[%emt 0:06:44]} h6 {[%emt 0:01:06]} 19. Bg3 {[%emt 0:03:48]} 1/2-1/2

[Event "SVK-ch Open 2018"]
[Site "Banska Stiavnica"]
[Date "2018.07.13"]
[Round "7"]
[White "Budinsky, Martin"]
[Black "Huncar, Martin"]
[Result "1/2-1/2"]
[ECO "B26"]
[WhiteElo "1985"]
[BlackElo "1840"]
[Annotator "NA"]
[PlyCount "87"]
[EventDate "2018.07.07"]
[EventType "swiss"]
[EventCountry "SVK"]
[SourceTitle "playchess.com"]
[Source "ChessBase"]
[SourceQuality "1"]
[TimeControl "40/5400+30:1800+30"]

1. e4 {[%emt 0:00:00]} c5 {[%emt 0:00:00]} 2. Nc3 {[%emt 0:00:00]} Nc6 {[%emt 0:00:00]} 3. g3 {[%emt 0:00:00]} g6 {[%emt 0:00:06]} 4. Bg2 {[%emt 0:00:00]} Bg7 {[%emt 0:00:21]} 5. d3 {[%emt 0:00:00]} d6 {[%emt 0:00:27]} 6. Be3 {[%emt 0:00:12]} e5 {[%emt 0:01:02]} 7. Qd2 {[%emt 0:00:53]} Nd4 {[%emt 0:00:42]} 8. Nge2 {[%emt 0:03:52]} Ne7 {[%emt 0:04:32]} 9. O-O {[%emt 0:00:31]} Be6 {[%emt 0:02:13]} 10. Nd5 {[%emt 0:04:04]} Bxd5 {[%emt 0:02:52]} 11. exd5 {[%emt 0:00:11]} Ndf5 {[%emt 0:00:39]} 12. c3 {[%emt 0:02:24]} O-O {[%emt 0:05:50]} 13. Kh1 {[%emt 0:06:18]} b5 {[%emt 0:02:17]} 14. Ng1 {[%emt 0:04:27]} Qb6 {[%emt 0:03:20]} 15. Qe2 {[%emt 0:03:25]} Nxe3 {[%emt 0:00:22]} 16. fxe3 {[%emt 0:01:28]} f5 {[%emt 0:12:58]} 17. e4 {[%emt 0:02:31]} Bh6 {[%emt 0:09:52]} 18. Bh3 {[%emt 0:08:28]} Qb7 {[%emt 0:11:06]} 19. Rf2 {[%emt 0:03:13]} Rf6 {[%emt 0:01:46]} 20. Raf1 {[%emt 0:01:41]} Raf8 {[%emt 0:00:02]} 21. c4 {[%emt 0:04:45]} bxc4 {[%emt 0:06:37]} 22. dxc4 {[%emt 0:00:11]} Kg7 {[%emt 0:01:38]} 23. b3 {[%emt 0:03:33]} Qb4 {[%emt 0:13:39]} 24. Qc2 {[%emt 0:05:32]} f4 {[%emt 0:02:30]} 25. Be6 {[%emt 0:00:59]} fxg3 {[%emt 0:07:19]} 26. Rxf6 {[%emt 0:00:39]} Rxf6 {[%emt 0:00:08]} 27. Rxf6 {[%emt 0:01:22]} Kxf6 {[%emt 0:00:02]} 28. hxg3 {[%emt 0:00:32]} Qe1 {[%emt 0:01:24]} 29. Kg2 {[%emt 0:01:09]} Bd2 {[%emt 0:03:45]} 30. Qd3 {[%emt 0:03:15]} Be3 {[%emt 0:00:45]} 31. Qf1+ {[%emt 0:00:29]} Qxf1+ {[%emt 0:00:09]} 32. Kxf1 {[%emt 0:00:04]} Bxg1 {[%emt 0:00:17]} 33. Kxg1 {[%emt 0:00:07]} h5 {[%emt 0:03:12]} 34. a3 {[%emt 0:00:23]} a5 {[%emt 0:01:11]} 35. Kg2 {[%emt 0:01:00]} g5 {[%emt 0:00:12]} 36. Kh3 {[%emt 0:02:22]} Ng6 {[%emt 0:00:12]} 37. Bf5 {[%emt 0:00:24]} Ne7 {[%emt 0:00:41]} 38. Bd7 {[%emt 0:00:13]} Ng6 {[%emt 0:00:18]} 39. Bf5 {[%emt 0:00:08]} Nf8 {[%emt 0:00:22]} 40. g4 {[%emt 0:01:15]} h4 {[%emt 0:04:28]} 41. a4 {[%emt 0:30:21]} Ke7 {[%emt 0:02:11]} 42. Kg2 {[%emt 0:00:00]} Kd8 {[%emt 0:00:45]} 43. Kh3 {[%emt 0:00:00]} Kc7 {[%emt 0:00:31]} 44. Kg2 {[%emt 0:00:00]} 1/2-1/2

[Event "SVK-ch Open 2018"]
[Site "Banska Stiavnica"]
[Date "2018.07.13"]
[Round "7"]
[White "Pesztericz, Laszlo"]
[Black "Weis, Dusan"]
[Result "1-0"]
[ECO "C50"]
[WhiteElo "1980"]
[BlackElo "1818"]
[Annotator "NA"]
[PlyCount "57"]
[EventDate "2018.07.07"]
[EventType "swiss"]
[EventCountry "SVK"]
[SourceTitle "playchess.com"]
[Source "ChessBase"]
[SourceQuality "1"]
[TimeControl "40/5400+30:1800+30"]

1. e4 {[%emt 0:00:00]} e5 {[%emt 0:00:00]} 2. Nf3 {[%emt 0:00:00]} Nc6 {[%emt 0:00:00]} 3. d4 {[%emt 0:00:00]} exd4 {[%emt 0:00:00]} 4. Bc4 {[%emt 0:00:01]} Be7 {[%emt 0:01:02]} 5. Nxd4 {[%emt 0:00:15]} Nf6 {[%emt 0:00:40]} 6. Nc3 {[%emt 0:00:14]} Ne5 {[%emt 0:03:20]} 7. Be2 {[%emt 0:02:50]} d5 {[%emt 0:02:46]} 8. f4 {[%emt 0:15:37]} Nc6 {[%emt 0:05:18]} 9. e5 {[%emt 0:01:52]} Ne4 {[%emt 0:07:05]} 10. Nxe4 {[%emt 0:05:39]} Nxd4 {[%emt 0:03:53]} 11. Qxd4 {[%emt 0:00:34]} dxe4 {[%emt 0:02:52]} 12. Qxe4 {[%emt 0:00:55]} O-O {[%emt 0:00:30]} 13. O-O {[%emt 0:01:37]} c6 {[%emt 0:01:02]} 14. Be3 {[%emt 0:01:09]} Be6 {[%emt 0:00:54]} 15. Bd3 {[%emt 0:15:01]} g6 {[%emt 0:02:21]} 16. f5 {[%emt 0:03:21]} Bd5 {[%emt 0:00:23]} 17. Qg4 {[%emt 0:02:49]} h5 {[%emt 0:00:38]} 18. Qh3 {[%emt 0:03:40]} Bg5 {[%emt 0:00:48]} 19. Kh1 {[%emt 0:02:44]} Bxe3 {[%emt 0:05:22]} 20. Qxe3 {[%emt 0:00:11]} Kh7 {[%emt 0:00:25]} 21. c4 {[%emt 0:04:44]} Bxg2+ 22. Kxg2 Qh4 {[%emt 0:03:29]} 23. Rf3 {[%emt 0:01:46]} Rad8 {[%emt 0:00:39]} 24. e6 {[%emt 0:04:51]} fxe6 {[%emt 0:06:26]} 25. fxg6+ {[%emt 0:01:02]} Kg7 {[%emt 0:01:07]} 26. Raf1 {[%emt 0:02:52]} Rxf3 {[%emt 0:05:13]} 27. Rxf3 {[%emt 0:01:00]} Qg4+ {[%emt 0:02:36]} 28. Kh1 {[%emt 0:01:01]} Rd7 {[%emt 0:01:20]} 29. Qe5+ {[%emt 0:01:50]} 1-0

[Event "SVK-ch Open 2018"]
[Site "Banska Stiavnica"]
[Date "2018.07.13"]
[Round "7"]
[White "Istok, Vojtech"]
[Black "Fizer, Marek"]
[Result "1-0"]
[ECO "A06"]
[WhiteElo "1971"]
[BlackElo "1740"]
[Annotator "NA"]
[PlyCount "45"]
[EventDate "2018.07.07"]
[EventType "swiss"]
[EventCountry "SVK"]
[SourceTitle "playchess.com"]
[Source "ChessBase"]
[SourceQuality "1"]
[TimeControl "40/5400+30:1800+30"]

1. Nf3 {[%emt 0:00:00]} d5 {[%emt 0:00:00]} 2. g3 {[%emt 0:00:00]} Nf6 {[%emt 0:00:33]} 3. Bg2 {[%emt 0:00:00]} Bf5 {[%emt 0:01:01]} 4. d4 {[%emt 0:00:58]} e6 {[%emt 0:00:33]} 5. c4 {[%emt 0:00:43]} Bb4+ {[%emt 0:01:18]} 6. Bd2 {[%emt 0:00:31]} Bxd2+ {[%emt 0:00:12]} 7. Nbxd2 {[%emt 0:00:25]} Qe7 {[%emt 0:00:56]} 8. Qb3 {[%emt 0:01:08]} b6 {[%emt 0:08:07]} 9. Ne5 {[%emt 0:05:58]} c6 {[%emt 0:20:40]} 10. O-O {[%emt 0:02:13]} O-O {[%emt 0:00:13]} 11. Rac1 {[%emt 0:05:27]} Rc8 {[%emt 0:12:37]} 12. cxd5 {[%emt 0:00:40]} exd5 {[%emt 0:03:46]} 13. Rc3 {[%emt 0:10:10]} Qe6 {[%emt 0:17:21]} 14. Rfc1 {[%emt 0:05:18]} Nfd7 {[%emt 0:10:43]} 15. Bxd5 {[%emt 0:06:02]} Qxd5 {[%emt 0:01:04]} 16. Qxd5 {[%emt 0:00:15]} cxd5 {[%emt 0:00:08]} 17. Rxc8+ {[%emt 0:00:06]} Nf8 {[%emt 0:00:08]} 18. Nc6 {[%emt 0:06:06]} Bxc8 {[%emt 0:02:25]} 19. Ne7+ {[%emt 0:00:04]} Kh8 {[%emt 0:00:12]} 20. Rxc8 {[%emt 0:00:10]} g6 {[%emt 0:00:15]} 21. Rxf8+ {[%emt 0:00:30]} Kg7 {[%emt 0:00:29]} 22. Rg8+ {[%emt 0:00:45]} Kf6 {[%emt 0:00:08]} 23. Nxd5+ {[%emt 0:00:08]} 1-0

[Event "SVK-ch Open 2018"]
[Site "Banska Stiavnica"]
[Date "2018.07.13"]
[Round "7"]
[White "Panko, Eduard"]
[Black "Pericka, Tomas"]
[Result "1/2-1/2"]
[ECO "B20"]
[WhiteElo "1958"]
[BlackElo "1975"]
[Annotator "NA"]
[PlyCount "28"]
[EventDate "2018.07.07"]
[EventType "swiss"]
[EventCountry "SVK"]
[SourceTitle "playchess.com"]
[Source "ChessBase"]
[SourceQuality "1"]
[TimeControl "40/5400+30:1800+30"]

1. e4 {[%emt 0:00:00]} c5 {[%emt 0:01:39]} 2. a3 {[%emt 0:00:00]} g6 {[%emt 0:00:28]} 3. Nc3 {[%emt 0:00:22]} Bg7 {[%emt 0:00:06]} 4. b4 {[%emt 0:01:08]} d6 {[%emt 0:02:21]} 5. Rb1 {[%emt 0:01:49]} Nf6 {[%emt 0:01:59]} 6. Bc4 {[%emt 0:01:50]} O-O {[%emt 0:01:06]} 7. Nge2 {[%emt 0:01:13]} Nc6 {[%emt 0:01:10]} 8. d3 {[%emt 0:03:28]} e6 {[%emt 0:09:13]} 9. bxc5 {[%emt 0:03:01]} d5 {[%emt 0:01:35]} 10. exd5 {[%emt 0:09:24]} exd5 {[%emt 0:00:25]} 11. Bb3 {[%emt 0:00:52]} d4 {[%emt 0:06:22]} 12. Na4 {[%emt 0:03:39]} Re8 {[%emt 0:07:17]} 13. O-O {[%emt 0:00:39]} Re5 {[%emt 0:06:29]} 14. Bf4 {[%emt 0:11:52]} Rf5 {[%emt 0:04:06]} 1/2-1/2

[Event "SVK-ch Open 2018"]
[Site "Banska Stiavnica"]
[Date "2018.07.13"]
[Round "7"]
[White "Kuna, Martin"]
[Black "Valicek, Jaroslav"]
[Result "1-0"]
[ECO "C77"]
[WhiteElo "1947"]
[BlackElo "1720"]
[Annotator "NA"]
[PlyCount "77"]
[EventDate "2018.07.07"]
[EventType "swiss"]
[EventCountry "SVK"]
[SourceTitle "playchess.com"]
[Source "ChessBase"]
[SourceQuality "1"]
[TimeControl "40/5400+30:1800+30"]

1. e4 {[%emt 0:00:00]} e5 {[%emt 0:00:00]} 2. Nf3 {[%emt 0:00:00]} Nc6 {[%emt 0:00:00]} 3. Bb5 {[%emt 0:00:12]} a6 {[%emt 0:00:13]} 4. Ba4 {[%emt 0:00:05]} Nf6 {[%emt 0:00:14]} 5. d3 {[%emt 0:00:23]} b5 {[%emt 0:00:15]} 6. Bb3 {[%emt 0:00:06]} d6 {[%emt 0:00:16]} 7. c3 {[%emt 0:00:05]} Na5 {[%emt 0:00:42]} 8. Bc2 {[%emt 0:00:27]} c5 {[%emt 0:00:12]} 9. O-O {[%emt 0:00:38]} Be7 {[%emt 0:00:20]} 10. Re1 {[%emt 0:00:39]} O-O {[%emt 0:00:31]} 11. Nbd2 {[%emt 0:00:09]} Qc7 {[%emt 0:02:13]} 12. Nf1 {[%emt 0:00:28]} h6 {[%emt 0:02:35]} 13. Ng3 {[%emt 0:01:34]} Re8 {[%emt 0:01:10]} 14. h3 {[%emt 0:01:38]} Nc6 {[%emt 0:00:20]} 15. Nf5 {[%emt 0:00:27]} Bf8 {[%emt 0:01:33]} 16. N3h4 {[%emt 0:00:56]} Kh7 {[%emt 0:00:41]} 17. Qf3 {[%emt 0:02:36]} Qd8 {[%emt 0:02:42]} 18. g4 {[%emt 0:11:19]} g6 {[%emt 0:02:09]} 19. Nxh6 {[%emt 0:06:58]} Be6 {[%emt 0:09:54]} 20. Bg5 {[%emt 0:21:17]} Be7 {[%emt 0:10:58]} 21. N4f5 {[%emt 0:09:52]} gxf5 {[%emt 0:12:45]} 22. gxf5 {[%emt 0:00:13]} Rg8 {[%emt 0:06:37]} 23. h4 {[%emt 0:03:25]} Nxe4 {[%emt 0:06:45]} 24. Nxg8 {[%emt 0:04:56]} Nxg5 {[%emt 0:03:22]} 25. Qh5+ {[%emt 0:00:55]} Kxg8 {[%emt 0:00:26]} 26. fxe6 {[%emt 0:00:54]} Nxe6 {[%emt 0:03:46]} 27. d4 {[%emt 0:05:54]} Bxh4 {[%emt 0:00:46]} 28. Qh7+ {[%emt 0:00:59]} Kf8 {[%emt 0:00:38]} 29. Qh8+ {[%emt 0:00:27]} Ke7 {[%emt 0:00:11]} 30. Qxh4+ {[%emt 0:00:05]} Kd7 {[%emt 0:02:13]} 31. Qxd8+ {[%emt 0:00:14]} Nexd8 {[%emt 0:01:11]} 32. dxc5 {[%emt 0:00:29]} dxc5 {[%emt 0:00:24]} 33. Rad1+ {[%emt 0:01:13]} Ke7 {[%emt 0:05:37]} 34. Be4 {[%emt 0:06:46]} Rc8 {[%emt 0:04:00]} 35. Rd5 {[%emt 0:01:47]} c4 {[%emt 0:03:20]} 36. Red1 {[%emt 0:00:53]} Rc7 {[%emt 0:00:21]} 37. Rd6 {[%emt 0:03:47]} a5 {[%emt 0:01:43]} 38. R6d5 {[%emt 0:03:09]} Rb7 {[%emt 0:06:30]} 39. Rxd8 {[%emt 0:00:48]} 1-0

[Event "SVK-ch Open 2018"]
[Site "Banska Stiavnica"]
[Date "2018.07.13"]
[Round "7"]
[White "Gzib, David"]
[Black "Sikora, Jan"]
[Result "1/2-1/2"]
[ECO "B84"]
[WhiteElo "1939"]
[BlackElo "2209"]
[Annotator "NA"]
[PlyCount "66"]
[EventDate "2018.07.07"]
[EventType "swiss"]
[EventCountry "SVK"]
[SourceTitle "playchess.com"]
[Source "ChessBase"]
[SourceQuality "1"]
[TimeControl "40/5400+30:1800+30"]

1. e4 {[%emt 0:00:00]} c5 {[%emt 0:00:00]} 2. Nf3 {[%emt 0:00:00]} d6 {[%emt 0:00:00]} 3. d4 {[%emt 0:00:00]} cxd4 {[%emt 0:00:00]} 4. Nxd4 {[%emt 0:00:00]} Nf6 {[%emt 0:00:00]} 5. Nc3 {[%emt 0:00:04]} a6 {[%emt 0:00:00]} 6. Be2 {[%emt 0:00:29]} e6 {[%emt 0:00:08]} 7. Be3 {[%emt 0:00:12]} Qc7 {[%emt 0:00:29]} 8. Qd2 {[%emt 0:00:50]} b5 {[%emt 0:05:23]} 9. a3 {[%emt 0:05:46]} Bb7 {[%emt 0:01:49]} 10. f3 {[%emt 0:01:44]} Nbd7 {[%emt 0:06:07]} 11. O-O {[%emt 0:09:06]} Be7 {[%emt 0:04:34]} 12. a4 {[%emt 0:03:41]} b4 {[%emt 0:03:44]} 13. Na2 {[%emt 0:00:11]} d5 {[%emt 0:00:44]} 14. e5 {[%emt 0:09:10]} Qxe5 {[%emt 0:07:36]} 15. Bf4 {[%emt 0:10:58]} Qh5 {[%emt 0:07:29]} 16. g4 {[%emt 0:00:11]} Qh3 {[%emt 0:01:32]} 17. Rf2 {[%emt 0:05:09]} Nxg4 {[%emt 0:01:29]} 18. Bf1 {[%emt 0:04:42]} Nxf2 {[%emt 0:01:28]} 19. Bxh3 {[%emt 0:08:33]} Nxh3+ {[%emt 0:00:02]} 20. Kg2 {[%emt 0:00:15]} Nxf4+ {[%emt 0:00:04]} 21. Qxf4 {[%emt 0:00:11]} e5 {[%emt 0:00:58]} 22. Qg3 {[%emt 0:01:34]} exd4 {[%emt 0:10:06]} 23. Re1 {[%emt 0:04:44]} Kd8 {[%emt 0:01:21]} 24. Qxg7 {[%emt 0:01:37]} Kc7 {[%emt 0:08:11]} 25. Qxd4 {[%emt 0:07:00]} Rhg8+ {[%emt 0:00:49]} 26. Kh1 {[%emt 0:01:10]} Bc5 {[%emt 0:00:11]} 27. Qf4+ {[%emt 0:01:04]} Bd6 {[%emt 0:00:04]} 28. Qd4 {[%emt 0:01:34]} a5 {[%emt 0:03:18]} 29. c3 {[%emt 0:03:27]} Rg6 {[%emt 0:05:43]} 30. cxb4 {[%emt 0:00:52]} Rag8 {[%emt 0:00:49]} 31. Nc3 {[%emt 0:03:20]} Be5 {[%emt 0:02:47]} 32. Nb5+ {[%emt 0:02:53]} Kd8 {[%emt 0:07:34]} 33. Qa7 {[%emt 0:00:38]} Bc6 {[%emt 0:14:57]} 1/2-1/2

[Event "SVK-ch Open 2018"]
[Site "Banska Stiavnica"]
[Date "2018.07.13"]
[Round "7"]
[White "Dylag, Emilia"]
[Black "Urhegyi, Ferenc"]
[Result "1-0"]
[ECO "A40"]
[WhiteElo "1935"]
[BlackElo "1851"]
[Annotator "NA"]
[PlyCount "49"]
[EventDate "2018.07.07"]
[EventType "swiss"]
[EventCountry "SVK"]
[SourceTitle "playchess.com"]
[Source "ChessBase"]
[SourceQuality "1"]
[TimeControl "40/5400+30:1800+30"]

1. d4 {[%emt 0:00:00]} e6 {[%emt 0:00:00]} 2. c4 {[%emt 0:00:00]} b6 {[%emt 0:00:07]} 3. Nf3 {[%emt 0:00:00]} Bb7 {[%emt 0:00:14]} 4. g3 {[%emt 0:00:29]} d6 {[%emt 0:01:23]} 5. Bg2 {[%emt 0:00:30]} Be7 {[%emt 0:00:35]} 6. O-O {[%emt 0:00:30]} Nf6 {[%emt 0:00:48]} 7. Nc3 {[%emt 0:00:25]} O-O {[%emt 0:00:34]} 8. Re1 {[%emt 0:01:10]} Nbd7 {[%emt 0:00:08]} 9. e4 {[%emt 0:01:11]} e5 {[%emt 0:00:51]} 10. d5 {[%emt 0:01:03]} a5 {[%emt 0:00:42]} 11. Nh4 {[%emt 0:01:45]} Re8 {[%emt 0:02:38]} 12. Nf5 {[%emt 0:01:19]} Bf8 {[%emt 0:00:35]} 13. Bg5 {[%emt 0:04:53]} g6 {[%emt 0:04:16]} 14. Nh6+ {[%emt 0:00:46]} Bxh6 {[%emt 0:00:35]} 15. Bxh6 {[%emt 0:00:06]} Kh8 {[%emt 0:02:00]} 16. Bg5 {[%emt 0:01:55]} Nf8 {[%emt 0:08:26]} 17. Nb5 {[%emt 0:04:02]} N8d7 {[%emt 0:03:05]} 18. Bh3 {[%emt 0:01:52]} Qb8 {[%emt 0:00:59]} 19. f4 {[%emt 0:11:19]} Kg7 {[%emt 0:03:56]} 20. Qf3 {[%emt 0:07:14]} Bc8 {[%emt 0:03:30]} 21. Rf1 {[%emt 0:12:00]} Nxe4 {[%emt 0:09:15]} 22. Qxe4 {[%emt 0:00:52]} Nc5 {[%emt 0:00:01]} 23. Qg2 {[%emt 0:00:33]} Bxh3 {[%emt 0:00:03]} 24. Qxh3 {[%emt 0:00:11]} exf4 {[%emt 0:00:24]} 25. Qh6+ {[%emt 0:00:15]} 1-0

[Event "SVK-ch Open 2018"]
[Site "Banska Stiavnica"]
[Date "2018.07.13"]
[Round "7"]
[White "Gresova, Zuzana"]
[Black "Mandak, Miroslav"]
[Result "0-1"]
[ECO "A28"]
[WhiteElo "1920"]
[BlackElo "1989"]
[Annotator "NA"]
[PlyCount "92"]
[EventDate "2018.07.07"]
[EventType "swiss"]
[EventCountry "SVK"]
[SourceTitle "playchess.com"]
[Source "ChessBase"]
[SourceQuality "1"]
[TimeControl "40/5400+30:1800+30"]

1. c4 {[%emt 0:00:00]} e5 {[%emt 0:01:34]} 2. Nc3 {[%emt 0:00:00]} Nf6 {[%emt 0:00:27]} 3. Nf3 {[%emt 0:00:04]} Nc6 {[%emt 0:00:15]} 4. e3 {[%emt 0:00:24]} Be7 {[%emt 0:03:48]} 5. a3 {[%emt 0:01:11]} O-O {[%emt 0:04:11]} 6. b4 {[%emt 0:02:03]} d6 {[%emt 0:00:19]} 7. Qc2 {[%emt 0:01:44]} Re8 {[%emt 0:04:40]} 8. Bb2 {[%emt 0:04:40]} Bf8 {[%emt 0:01:44]} 9. Bd3 {[%emt 0:05:09]} g6 {[%emt 0:06:05]} 10. O-O {[%emt 0:06:08]} Bg7 {[%emt 0:05:27]} 11. Nd5 {[%emt 0:22:52]} Ne7 {[%emt 0:07:39]} 12. Nxf6+ {[%emt 0:05:43]} Bxf6 {[%emt 0:00:08]} 13. Be2 {[%emt 0:01:01]} Nf5 {[%emt 0:14:06]} 14. d3 {[%emt 0:02:26]} c6 {[%emt 0:03:13]} 15. e4 {[%emt 0:02:31]} Ng7 {[%emt 0:04:52]} 16. d4 {[%emt 0:06:20]} exd4 {[%emt 0:02:36]} 17. Bxd4 {[%emt 0:02:32]} Bg4 {[%emt 0:03:21]} 18. Rad1 {[%emt 0:02:45]} Qe7 {[%emt 0:05:58]} 19. Bxf6 {[%emt 0:03:41]} Qxf6 {[%emt 0:00:09]} 20. Nd4 {[%emt 0:02:14]} Bxe2 {[%emt 0:01:15]} 21. Nxe2 {[%emt 0:01:17]} a6 {[%emt 0:04:03]} 22. Ng3 {[%emt 0:02:04]} h5 {[%emt 0:02:12]} 23. f4 {[%emt 0:06:27]} h4 {[%emt 0:02:19]} 24. Ne2 {[%emt 0:00:43]} Qe7 {[%emt 0:01:25]} 25. Nc3 {[%emt 0:03:29]} f5 {[%emt 0:04:31]} 26. Rfe1 {[%emt 0:01:30]} Qf6 {[%emt 0:01:47]} 27. exf5 {[%emt 0:03:06]} Rxe1+ {[%emt 0:02:07]} 28. Rxe1 {[%emt 0:00:09]} gxf5 {[%emt 0:02:16]} 29. Qd3 {[%emt 0:01:13]} Rd8 {[%emt 0:01:37]} 30. Rd1 {[%emt 0:01:31]} Kf7 {[%emt 0:01:04]} 31. Qf3 {[%emt 0:00:44]} Re8 {[%emt 0:01:14]} 32. a4 {[%emt 0:02:55]} Re6 {[%emt 0:01:45]} 33. Kf2 {[%emt 0:01:43]} Qe7 {[%emt 0:02:47]} 34. h3 {[%emt 0:03:51]} Kg6 {[%emt 0:01:58]} 35. g4 {[%emt 0:00:49]} hxg3+ {[%emt 0:00:38]} 36. Qxg3+ {[%emt 0:00:15]} Kf7 {[%emt 0:00:57]} 37. Rg1 {[%emt 0:00:36]} Qf6 {[%emt 0:00:35]} 38. Rd1 {[%emt 0:01:28]} Qh6 {[%emt 0:00:58]} 39. b5 {[%emt 0:00:52]} Nh5 {[%emt 0:01:04]} 40. Qg5 {[%emt 0:00:54]} Nxf4 {[%emt 0:00:54]} 41. Qxf5+ {[%emt 0:05:15]} Ke7 {[%emt 0:04:04]} 42. bxc6 {[%emt 0:04:20]} bxc6 {[%emt 0:01:26]} 43. Rh1 {[%emt 0:08:26]} Rf6 {[%emt 0:04:47]} 44. Qe4+ {[%emt 0:02:15]} Kd7 {[%emt 0:01:24]} 45. Rb1 {[%emt 0:06:28]} Nxh3+ {[%emt 0:05:25]} 46. Kg3 {[%emt 0:02:17]} Rg6+ {[%emt 0:01:10]} 0-1